bitfinex-derivatives/quotes_BNBF0:USTF0_20250715
["timestamp","ask_amount","ask_price","bid_price","bid_amount"]
[1752576643362,0.99103972,679.71,678.96,0.2560876]
[1752576643363,0.99103972,679.7,679.13,0.9835373]
[1752576644253,2.09599072,679.7,679.13,0.9835373]
[1752576644457,1.104951,679.69,679.13,0.9835373]
[1752576644652,1.104951,679.68,679.13,0.9835373]
[1752576644856,1.104951,679.67,679.13,0.9835373]
[1752576645053,1.104951,679.66,679.13,0.9835373]
[1752576645252,1.104951,679.65,679.13,0.9835373]
[1752576645454,1.104951,679.64,679.13,0.9835373]
[1752576645658,1.104951,679.63,679.13,0.9835373]
[1752576645859,1.104951,679.62,679.13,0.9835373]
[1752576646160,0.99103972,679.7,679.13,0.9835373]
[1752576649656,2.09590862,679.7,679.13,0.9835373]
[1752576649856,1.1048689,679.69,679.13,0.9835373]
[1752576650163,1.1048689,679.68,679.13,0.9835373]
[1752576650461,1.1048689,679.67,679.13,0.9835373]
[1752576650760,1.1048689,679.66,679.13,0.9835373]
[1752576650955,1.1048689,679.65,679.13,0.9835373]
[1752576651157,1.1048689,679.64,679.13,0.9835373]
[1752576651356,1.1048689,679.63,679.13,0.9835373]
[1752576651555,1.1048689,679.62,679.13,0.9835373]
[1752576651755,0.99103972,679.69,679.13,0.9835373]
[1752576652560,0.25607724,679.89,679.13,0.9835373]
[1752576652561,0.99103972,679.7,679.13,0.9835373]
[1752576652857,0.99103972,679.68,679.14,0.9835373]
[1752576653262,0.99103972,679.67,679.15,0.9835373]
[1752576654365,0.99103972,679.68,679.14,0.9835373]
[1752576659568,0.99103972,679.67,679.14,0.9835373]
[1752576659768,0.99103972,679.67,679.15,0.9835373]
[1752576661069,0.99103972,679.68,679.14,0.9835373]
[1752576662570,0.99103972,679.67,679.15,0.9835373]
[1752576663470,0.99103972,679.74,679.17,0.9835373]
[1752576663671,1.1048685,679.73,679.19,0.9835373]
[1752576663871,1.1048685,679.72,679.21,0.9835373]
[1752576664167,1.1048685,679.71,679.21,0.9835373]
[1752576664467,1.1048685,679.7,679.21,0.9835373]
[1752576664668,1.1048685,679.69,679.21,0.9835373]
[1752576664872,0.99103972,679.76,679.21,0.9835373]
[1752576665769,0.99103972,679.79,679.24,0.9835373]
[1752576666083,0.99103972,679.8,679.25,0.9835373]
[1752576666567,2.09581602,679.82,679.28,0.9835373]
[1752576666772,1.10450301,679.81,679.28,0.9835373]
[1752576666969,1.10450301,679.8,679.27,0.9835373]
[1752576667169,0.99103972,679.84,679.11,1.3083295]
[1752576667170,0.99103972,679.84,679.26,0.9835373]
[1752576667675,0.99103972,679.87,679.29,0.9835373]
[1752576668073,0.99103972,679.85,679.31,0.9835373]
[1752576668277,0.99103972,679.86,679.3,0.9835373]
[1752576669177,0.99103972,679.86,679.29,0.9835373]
[1752576669372,0.99103972,679.86,679.3,0.9835373]
[1752576670176,1.1038906,679.86,679.29,0.9835373]
[1752576670472,1.1038906,679.85,679.29,0.9835373]
[1752576670673,1.1038906,679.84,679.29,0.9835373]
[1752576670976,1.1038906,679.83,679.29,0.9835373]
[1752576671274,1.1037436,679.82,679.29,0.9835373]
[1752576671476,0.99103972,679.87,679.29,0.9835373]
[1752576672288,0.99103972,679.88,679.28,0.9835373]
[1752576674178,2.09464912,679.89,679.28,0.9835373]
[1752576674373,2.09464912,679.88,679.28,0.9835373]
[1752576674672,1.1036094,679.87,679.28,0.9835373]
[1752576674874,1.1036094,679.86,679.28,0.9835373]
[1752576675177,1.1036094,679.85,679.27,0.9835373]
[1752576675377,1.1036094,679.84,679.27,0.9835373]
[1752576675577,1.1036094,679.83,679.27,0.9835373]
[1752576675777,0.99103972,679.89,679.27,0.9835373]
[1752576676878,0.99103972,679.86,679.29,0.9835373]
[1752576677179,0.99103972,679.87,679.29,0.9835373]
[1752576677573,0.99103972,679.86,679.29,0.9835373]
[1752576677976,0.99103972,679.87,679.28,0.9835373]
[1752576678276,0.99103972,679.88,679.28,0.9835373]
[1752576680379,0.99103972,679.88,679.27,0.9835373]
[1752576680582,0.99103972,679.87,679.27,0.9835373]
[1752576680776,0.99103972,679.87,679.28,0.9835373]
[1752576684679,2.09388632,679.87,679.28,0.9835373]
[1752576684979,1.1028466,679.86,679.28,0.9835373]
[1752576685177,1.1028466,679.85,679.28,0.9835373]
[1752576685378,1.1028466,679.84,679.28,0.9835373]
[1752576685581,1.1028466,679.83,679.28,0.9835373]
[1752576685780,1.1028466,679.82,679.28,0.9835373]
[1752576686082,0.99103972,679.87,679.27,0.9835373]
[1752576686283,0.99103972,679.86,679.28,0.9835373]
[1752576687778,0.99103972,679.85,679.29,0.9835373]
[1752576688586,2.09354712,679.87,679.27,0.9835373]
[1752576688785,1.1025074,679.86,679.27,0.9835373]
[1752576688983,0.99103972,679.87,679.27,0.9835373]
[1752576688984,1.1025074,679.85,679.27,0.9835373]
[1752576689183,1.1025074,679.84,679.27,0.9835373]
[1752576689386,1.1025074,679.83,679.27,0.9835373]
[1752576689587,0.99103972,679.88,679.27,0.9835373]
[1752576690986,0.99103972,679.88,679.26,0.9835373]
[1752576692184,2.09341372,679.89,679.26,0.9835373]
[1752576692389,1.10227881,679.88,679.26,0.9835373]
[1752576692585,0.99103972,679.89,679.26,0.9835373]
[1752576692586,1.10227881,679.87,679.26,0.9835373]
[1752576692790,1.10227881,679.86,679.26,0.9835373]
[1752576692991,1.10227881,679.85,679.26,0.9835373]
[1752576693284,1.10227881,679.84,679.26,0.9835373]
[1752576693486,0.99103972,679.9,679.25,0.9835373]
[1752576694085,0.99103972,679.89,679.25,0.9835373]
[1752576694289,0.99103972,679.9,679.25,0.9835373]
[1752576696589,2.09329202,679.9,679.25,0.9835373]
[1752576696890,1.1022523,679.89,679.25,0.9835373]
[1752576697098,1.1022523,679.88,679.25,0.9835373]
[1752576697319,1.1022523,679.87,679.23,0.9835373]
[1752576697590,1.1022523,679.86,679.23,0.9835373]
[1752576697790,0.2560113,680.06,679.2,0.9835373]
[1752576697791,1.1022523,679.85,679.2,0.9835373]
[1752576697990,1.1022523,679.84,679.19,0.9835373]
[1752576698188,1.1022523,679.83,679.19,0.9835373]
[1752576698390,1.1022461,679.82,679.19,0.9835373]
[1752576698590,0.99103972,679.91,679.19,0.9835373]
[1752576698591,1.1022461,679.81,679.19,0.9835373]
[1752576698896,0.99103972,679.89,679.18,0.9835373]
[1752576701795,0.99103972,679.89,679.01,1.3083295]
[1752576701796,0.99103972,679.89,679.17,0.9835373]
[1752576701993,0.99103972,679.89,678.96,0.2560876]
[1752576701994,0.99103972,679.89,679.18,0.9835373]
[1752576704002,0.99103972,679.88,679.18,0.9835373]
[1752576704700,0.99103972,679.89,679.18,0.9835373]
[1752576705201,0.99103972,679.88,679.19,0.9835373]
[1752576705601,0.99103972,679.88,679.18,0.9835373]
[1752576706096,0.99103972,679.88,679.19,0.9835373]
[1752576707697,0.99103972,679.84,679.21,0.9835373]
[1752576707896,0.99103972,679.86,679.2,0.9835373]
[1752576708302,0.99103972,679.85,679.21,0.9835373]
[1752576708906,0.99103972,679.85,679.2,0.9835373]
[1752576709106,0.99103972,679.85,679.21,0.9835373]
[1752576710405,2.09382182,679.85,679.21,0.9835373]
[1752576710602,1.1027821,679.84,679.21,0.9835373]
[1752576710905,1.1027821,679.83,679.21,0.9835373]
[1752576711101,1.1027821,679.82,679.23,0.9835373]
[1752576711306,1.1027821,679.81,679.23,0.9835373]
[1752576711507,1.1027821,679.8,679.23,0.9835373]
[1752576711802,1.1027821,679.79,679.23,0.9835373]
[1752576712105,0.99103972,679.82,679.23,0.9835373]
[1752576714505,0.99103972,679.82,679.24,0.9835373]
[1752576715102,0.99103972,679.81,679.24,0.9835373]
[1752576715306,2.09401152,679.81,679.24,0.9835373]
[1752576715502,1.1029718,679.8,679.24,0.9835373]
[1752576715705,1.1029718,679.79,679.24,0.9835373]
[1752576716006,1.1029718,679.78,679.24,0.9835373]
[1752576716206,1.1029718,679.78,679.25,0.9835373]
[1752576716407,1.1035737,679.77,679.24,0.9835373]
[1752576716604,0.99103972,679.81,679.24,0.9835373]
[1752576717309,0.99103972,679.84,679.22,0.9835373]
[1752576717908,0.99103972,679.84,678.96,0.2560876]
[1752576717909,0.99103972,679.83,679.23,0.9835373]
[1752576718309,0.99103972,679.84,679.23,0.9835373]
[1752576718706,0.99103972,679.83,679.23,0.9835373]
[1752576719210,0.99103972,679.83,679.08,1.3083295]
[1752576719211,0.99103972,679.83,679.24,0.9835373]
[1752576721208,0.99103972,679.83,679.23,0.9835373]
[1752576721407,0.99103972,679.82,679.24,0.9835373]
[1752576722108,0.99103972,679.82,679.25,0.9835373]
[1752576723214,2.09463492,679.81,679.26,0.9835373]
[1752576723415,1.1035952,679.8,679.25,0.9835373]
[1752576723615,1.1035952,679.79,679.25,0.9835373]
[1752576723917,1.1035952,679.78,679.25,0.9835373]
[1752576724210,1.1035952,679.77,679.25,0.9835373]
[1752576724513,1.1035952,679.76,679.25,0.9835373]
[1752576724714,1.1035952,679.75,679.25,0.9835373]
[1752576724915,1.1035952,679.74,679.25,0.9835373]
[1752576725216,1.1035952,679.73,679.26,0.9835373]
[1752576725412,0.99103972,679.81,679.26,0.9835373]
[1752576725613,1.1052326,679.8,679.26,0.9835373]
[1752576726014,1.1052326,679.79,679.26,0.9835373]
[1752576726212,1.1052326,679.78,679.26,0.9835373]
[1752576726414,1.1052326,679.77,679.26,0.9835373]
[1752576726712,1.1052326,679.76,679.26,0.9835373]
[1752576726913,1.1052326,679.75,679.26,0.9835373]
[1752576727116,1.1052126,679.74,679.26,0.9835373]
[1752576727317,1.1052126,679.73,679.27,0.9835373]
[1752576727525,1.1052126,679.72,679.27,0.9835373]
[1752576727715,0.99103972,679.79,679.27,0.9835373]
[1752576727914,1.1051988,679.78,679.27,0.9835373]
[1752576728118,1.1051988,679.77,679.27,0.9835373]
[1752576728415,1.1051988,679.76,679.27,0.9835373]
[1752576728614,1.1051988,679.75,679.27,0.9835373]
[1752576728915,1.1051988,679.74,679.27,0.9835373]
[1752576729115,1.1051988,679.73,679.27,0.9835373]
[1752576729313,1.1051988,679.72,679.27,0.9835373]
[1752576729513,0.99103972,679.8,679.27,0.9835373]
[1752576729715,1.1051784,679.79,679.27,0.9835373]
[1752576729918,1.1051784,679.78,679.27,0.9835373]
[1752576730116,1.1051784,679.77,679.27,0.9835373]
[1752576730320,1.1051784,679.76,679.27,0.9835373]
[1752576730620,1.1051784,679.75,679.27,0.9835373]
[1752576730820,1.1051784,679.74,679.27,0.9835373]
[1752576731018,1.1051784,679.73,679.27,0.9835373]
[1752576731223,1.1051784,679.72,679.27,0.9835373]
[1752576731422,0.99103972,679.8,679.27,0.9835373]
[1752576731622,1.1051704,679.79,679.27,0.9835373]
[1752576731823,2.09621012,679.78,679.28,0.9835373]
[1752576732018,1.1051704,679.77,679.28,0.9835373]
[1752576732421,1.1051704,679.76,679.28,0.9835373]
[1752576732622,1.1051704,679.75,679.28,0.9835373]
[1752576732819,1.1051704,679.74,679.28,0.9835373]
[1752576733125,1.1051704,679.73,679.28,0.9835373]
[1752576733322,1.1051704,679.72,679.28,0.9835373]
[1752576733521,1.1051704,679.71,679.28,0.9835373]
[1752576733726,0.99103972,679.79,679.28,0.9835373]
[1752576733921,1.1051687,679.78,679.28,0.9835373]
[1752576734337,1.1051687,679.77,679.28,0.9835373]
[1752576734626,1.1051687,679.76,679.28,0.9835373]
[1752576734827,1.1051687,679.75,679.28,0.9835373]
[1752576735124,1.1051687,679.74,679.28,0.9835373]
[1752576735427,1.1051687,679.73,679.28,0.9835373]
[1752576735728,1.1051687,679.72,679.28,0.9835373]
[1752576735927,1.1051687,679.71,679.28,0.9835373]
[1752576736227,0.99103972,679.79,679.28,0.9835373]
[1752576736423,1.1051838,679.78,679.28,0.9835373]
[1752576736624,1.1051838,679.77,679.29,0.9835373]
[1752576736928,1.1051838,679.76,679.29,0.9835373]
[1752576737128,1.1051838,679.75,679.28,0.9835373]
[1752576737325,1.1051838,679.74,679.24,0.9835373]
[1752576737529,1.1051838,679.73,679.24,0.9835373]
[1752576737726,1.1051838,679.72,679.23,0.9835373]
[1752576737928,1.1051838,679.71,679.23,0.9835373]
[1752576738230,0.99103972,679.8,679.23,0.9835373]
[1752576738435,1.1050956,679.79,679.23,0.9835373]
[1752576739226,1.1050956,679.78,679.22,0.9835373]
[1752576739431,1.1050956,679.77,679.22,0.9835373]
[1752576739630,1.1050956,679.76,679.22,0.9835373]
[1752576739925,1.1050956,679.75,679.22,0.9835373]
[1752576740130,1.1050956,679.74,679.22,0.9835373]
[1752576740330,1.1050956,679.73,679.22,0.9835373]
[1752576740640,1.1050956,679.72,679.22,0.9835373]
[1752576740830,1.1050956,679.72,678.96,0.2560876]
[1752576740831,0.99103972,679.82,679.23,0.9835373]
[1752576742125,0.99103972,679.85,679.26,0.9835373]
[1752576743426,1.1050418,679.84,679.26,0.9835373]
[1752576744632,0.99103972,679.81,679.28,0.9835373]
[1752576745133,2.09608152,679.81,679.28,0.9835373]
[1752576745331,1.1050418,679.8,679.29,0.9835373]
[1752576745532,1.1050418,679.79,679.29,0.9835373]
[1752576745732,1.1050418,679.78,679.29,0.9835373]
[1752576746027,1.1050418,679.77,679.29,0.9835373]
[1752576746231,1.1050418,679.76,679.29,0.9835373]
[1752576746429,1.1050418,679.75,679.29,0.9835373]
[1752576746629,1.1050418,679.74,679.29,0.9835373]
[1752576746832,1.1050418,679.73,679.29,0.9835373]
[1752576747033,1.1050418,679.72,679.29,0.9835373]
[1752576747234,0.99103972,679.8,679.29,0.9835373]
[1752576747435,1.1051387,679.79,679.29,0.9835373]
[1752576748133,2.09617842,679.79,679.28,0.9835373]
[1752576748331,1.1051387,679.78,679.29,0.9835373]
[1752576748530,1.1051387,679.77,679.29,0.9835373]
[1752576748730,1.1051387,679.76,679.29,0.9835373]
[1752576748931,1.1051387,679.75,679.29,0.9835373]
[1752576749234,1.1051387,679.74,679.29,0.9835373]
[1752576749536,1.1051387,679.73,679.29,0.9835373]
[1752576749735,1.1051387,679.72,679.3,0.9835373]
[1752576749935,1.1051387,679.71,679.31,0.9835373]
[1752576750130,0.99103972,679.76,679.31,0.9835373]
[1752576750331,1.105204,679.75,679.31,0.9835373]
[1752576750636,2.09624372,679.75,679.31,0.9835373]
[1752576750832,1.105204,679.74,679.31,0.9835373]
[1752576751032,1.105204,679.73,679.31,0.9835373]
[1752576751238,1.105204,679.72,679.31,0.9835373]
[1752576751433,1.105204,679.71,679.31,0.9835373]
[1752576751636,0.99103972,679.76,679.31,0.9835373]
[1752576751940,1.1052715,679.75,679.31,0.9835373]
[1752576753233,1.1052715,679.74,679.31,0.9835373]
[1752576753436,1.1052715,679.74,679.32,0.9835373]
[1752576753737,1.1052715,679.73,679.3,0.9835373]
[1752576753935,1.1052715,679.72,679.3,0.9835373]
[1752576754137,1.1052715,679.71,679.3,0.9835373]
[1752576754337,0.99103972,679.77,679.3,0.9835373]
[1752576754534,1.1053877,679.76,679.3,0.9835373]
[1752576756333,1.1053877,679.76,679.31,0.9835373]
[1752576757137,2.09642742,679.76,679.31,0.9835373]
[1752576757338,1.1053877,679.75,679.31,0.9835373]
[1752576757537,1.1053877,679.74,679.31,0.9835373]
[1752576757740,1.1053877,679.73,679.31,0.9835373]
[1752576757935,1.1053877,679.72,679.31,0.9835373]
[1752576758235,1.1053877,679.71,679.31,0.9835373]
[1752576758439,0.99103972,679.76,679.31,0.9835373]
[1752576758737,1.1054899,679.75,679.31,0.9835373]
[1752576759240,1.1054899,679.74,679.28,0.9835373]
[1752576759438,1.1054899,679.73,679.28,0.9835373]
[1752576759638,0.99103972,679.81,679.28,0.9835373]
[1752576759836,1.105493,679.8,679.28,0.9835373]
[1752576760440,0.99103972,679.81,679.28,0.9835373]
[1752576760741,1.105491,679.8,679.28,0.9835373]
[1752576761037,1.1054962,679.79,679.28,0.9835373]
[1752576761238,1.1054962,679.78,679.28,0.9835373]
[1752576761436,1.1054962,679.77,679.28,0.9835373]
[1752576761636,1.1054962,679.76,679.28,0.9835373]
[1752576761838,1.1054962,679.75,679.28,0.9835373]
[1752576762037,1.1054962,679.74,679.28,0.9835373]
[1752576762240,1.1054962,679.73,679.28,0.9835373]
[1752576762438,0.99103972,679.81,679.28,0.9835373]
[1752576762643,1.1055029,679.8,679.28,0.9835373]
[1752576763346,2.09654262,679.8,679.28,0.9835373]
[1752576763544,1.1055029,679.79,679.28,0.9835373]
[1752576764045,1.1055029,679.78,679.28,0.9835373]
[1752576764245,0.99103972,679.8,679.28,0.9835373]
[1752576764246,1.1055029,679.77,679.28,0.9835373]
[1752576764442,1.1055029,679.76,679.28,0.9835373]
[1752576764643,1.1055029,679.75,679.28,0.9835373]
[1752576764843,1.1055029,679.74,679.28,0.9835373]
[1752576765043,1.1055029,679.73,679.29,0.9835373]
[1752576765243,0.99103972,679.81,679.29,0.9835373]
[1752576765444,1.1055046,679.8,679.29,0.9835373]
[1752576767148,0.99103972,679.83,679.29,0.9835373]
[1752576767342,1.1055046,679.82,679.28,0.9835373]
[1752576767546,1.1055046,679.81,679.28,0.9835373]
[1752576767843,1.1055046,679.8,679.28,0.9835373]
[1752576768046,1.1055046,679.79,679.28,0.9835373]
[1752576768243,0.99103972,679.83,679.28,0.98561077]
[1752576768244,1.1055046,679.78,679.28,0.98561077]
[1752576768544,1.1055046,679.77,679.28,0.98561077]
[1752576768748,1.1055046,679.76,679.28,0.98561077]
[1752576769048,1.1055046,679.75,679.28,0.98561077]
[1752576769248,1.1055046,679.74,679.29,0.98561077]
[1752576769551,0.2560113,680.06,679.3,0.98561077]
[1752576769552,1.1054256,679.73,679.3,0.98561077]
[1752576769847,1.1054256,679.72,679.3,0.98561077]
[1752576770049,0.99288467,679.8,679.3,0.98561077]
[1752576770245,1.1054256,679.79,679.3,0.98561077]
[1752576770549,1.1054256,679.78,679.3,0.98561077]
[1752576770744,1.1054256,679.77,679.3,0.98561077]
[1752576770945,1.1054256,679.76,679.3,0.98561077]
[1752576771144,1.1054256,679.75,679.3,0.98561077]
[1752576771344,1.1054256,679.74,679.3,0.98561077]
[1752576771548,1.1054256,679.73,679.3,0.98561077]
[1752576771743,1.1054256,679.72,679.3,0.98561077]
[1752576771946,0.99288467,679.79,679.3,0.98561077]
[1752576772150,1.1054315,679.78,679.3,0.98561077]
[1752576772346,1.1054315,679.77,679.3,0.98561077]
[1752576772645,1.1054315,679.76,679.3,0.98561077]
[1752576772945,0.99288467,679.8,679.3,0.98561077]
[1752576772946,1.1054315,679.75,679.3,0.98561077]
[1752576773150,1.1054315,679.74,679.3,0.98561077]
[1752576773449,1.1054315,679.73,679.3,0.98561077]
[1752576773649,1.1054315,679.72,679.3,0.98561077]
[1752576773846,0.99288467,679.79,679.31,0.98561077]
[1752576774149,1.1054364,679.78,679.31,0.98561077]
[1752576774343,1.1054364,679.77,679.31,0.98561077]
[1752576774546,1.1054364,679.76,679.31,0.98561077]
[1752576774746,1.1054364,679.75,679.31,0.98561077]
[1752576774947,1.1054364,679.74,679.31,0.98561077]
[1752576775150,1.1054364,679.73,679.31,0.98561077]
[1752576775347,1.1054364,679.72,679.31,0.98561077]
[1752576775651,0.99288467,679.79,679.31,0.98561077]
[1752576775852,1.1054423,679.78,679.31,0.98561077]
[1752576776148,1.1054423,679.77,679.3,0.98561077]
[1752576776351,1.1054423,679.76,679.3,0.98561077]
[1752576776552,1.1054423,679.75,679.3,0.98561077]
[1752576776851,0.99288467,679.8,679.3,0.98561077]
[1752576776852,1.1054423,679.74,679.3,0.98561077]
[1752576777147,1.1054423,679.73,679.31,0.98561077]
[1752576777451,1.1054423,679.72,679.32,0.98561077]
[1752576777651,1.1054423,679.71,679.32,0.98561077]
[1752576777849,0.99288467,679.79,679.32,0.98561077]
[1752576778051,2.09833257,679.78,679.32,0.98561077]
[1752576778249,1.1054479,679.77,679.32,0.98561077]
[1752576778552,1.1054479,679.76,679.32,0.98561077]
[1752576778748,1.1054479,679.75,679.32,0.98561077]
[1752576778948,1.1054479,679.74,679.33,0.98561077]
[1752576779150,1.1054479,679.73,679.32,0.98561077]
[1752576779352,1.1054479,679.72,679.32,0.98561077]
[1752576779552,1.1054479,679.71,679.32,0.98561077]
[1752576779758,0.99288467,679.78,679.32,0.98561077]
[1752576780054,1.105454,679.77,679.32,0.98561077]
[1752576780248,1.105454,679.76,679.32,0.98561077]
[1752576780551,1.105454,679.75,679.32,0.98561077]
[1752576780750,1.105454,679.74,679.32,0.98561077]
[1752576780948,1.105454,679.73,679.32,0.98561077]
[1752576781149,1.105454,679.72,679.32,0.98561077]
[1752576781350,1.105454,679.71,679.32,0.98561077]
[1752576781553,0.99288467,679.79,679.32,0.98561077]
[1752576781749,1.1054538,679.78,679.33,0.98561077]
[1752576781950,1.1054538,679.77,679.33,0.98561077]
[1752576782157,1.1054538,679.76,679.33,0.98561077]
[1752576782354,1.1054538,679.75,679.33,0.98561077]
[1752576782654,1.1054538,679.74,679.33,0.98561077]
[1752576782853,1.1054538,679.73,679.33,0.98561077]
[1752576783150,1.1054538,679.72,679.33,0.98561077]
[1752576783351,1.1054494,679.71,679.33,0.98561077]
[1752576783560,0.99288467,679.79,679.33,0.98561077]
[1752576783751,1.1054477,679.78,679.33,0.98561077]
[1752576783951,1.1054477,679.77,679.33,0.98561077]
[1752576784151,1.1054477,679.76,679.33,0.98561077]
[1752576784351,1.1054477,679.75,679.32,0.98561077]
[1752576784553,1.1054477,679.74,679.32,0.98561077]
[1752576784755,1.1054477,679.73,679.32,0.98561077]
[1752576784955,1.1054477,679.72,679.32,0.98561077]
[1752576785156,0.99288467,679.81,679.32,0.98561077]
[1752576785352,1.1054463,679.8,679.32,0.98561077]
[1752576785556,1.1054463,679.79,679.32,0.98561077]
[1752576785757,1.1054463,679.78,679.32,0.98561077]
[1752576785957,1.1054463,679.77,679.32,0.98561077]
[1752576786164,1.1054463,679.76,679.32,0.98561077]
[1752576786362,1.1054463,679.75,679.32,0.98561077]
[1752576786561,1.1054463,679.74,679.32,0.98561077]
[1752576786762,1.1054463,679.73,679.32,0.98561077]
[1752576787068,1.1054463,679.72,679.32,0.98561077]
[1752576787265,0.99288467,679.8,679.32,0.98561077]
[1752576787561,1.1054464,679.79,679.32,0.98561077]
[1752576787865,1.1054464,679.78,679.32,0.98561077]
[1752576788061,1.1054464,679.77,679.32,0.98561077]
[1752576788363,1.1054464,679.76,679.32,0.98561077]
[1752576788569,1.1054464,679.75,679.32,0.98561077]
[1752576788762,1.1054464,679.74,679.32,0.98561077]
[1752576788963,1.1054464,679.73,679.32,0.98561077]
[1752576789267,0.99288467,679.8,679.32,0.98561077]
[1752576789563,1.1054248,679.79,679.32,0.98561077]
[1752576789765,1.1054248,679.79,679.3,0.98561077]
[1752576789965,0.99288467,679.84,679.3,0.98561077]
[1752576789966,1.1054248,679.78,679.3,0.98561077]
[1752576790167,1.1054248,679.77,679.3,0.98561077]
[1752576790368,1.1054248,679.76,679.3,0.98561077]
[1752576790564,1.1054248,679.75,679.3,0.98561077]
[1752576790764,1.1054248,679.74,679.3,0.98561077]
[1752576790965,0.99288467,679.84,679.3,0.98561077]
[1752576791266,2.09830007,679.83,679.3,0.98561077]
[1752576791467,1.1054154,679.82,679.3,0.98561077]
[1752576791668,1.1054154,679.81,679.3,0.98561077]
[1752576791870,1.1054154,679.8,679.3,0.98561077]
[1752576792069,1.1054154,679.79,679.3,0.98561077]
[1752576792265,1.1054154,679.78,679.31,0.98561077]
[1752576792466,0.99288467,679.83,679.31,0.98561077]
[1752576792668,1.1054052,679.82,679.31,0.98561077]
[1752576792867,1.1054052,679.81,679.31,0.98561077]
[1752576793069,1.1054052,679.8,679.31,0.98561077]
[1752576793271,1.1054052,679.79,679.31,0.98561077]
[1752576793472,1.1054052,679.78,679.31,0.98561077]
[1752576793669,1.1054052,679.77,679.31,0.98561077]
[1752576793868,1.1054052,679.76,679.31,0.98561077]
[1752576794072,1.1054052,679.75,679.31,0.98561077]
[1752576794273,1.1053803,679.74,679.32,0.98561077]
[1752576794470,0.99288467,679.82,679.32,0.98561077]
[1752576794675,1.1053787,679.81,679.32,0.98561077]
[1752576794873,1.1053787,679.8,679.32,0.98561077]
[1752576795073,1.1053787,679.79,679.32,0.98561077]
[1752576795269,1.1053787,679.78,679.32,0.98561077]
[1752576795573,1.1053787,679.77,679.31,0.98561077]
[1752576795774,1.1053787,679.76,679.31,0.98561077]
[1752576795973,1.1053787,679.75,679.31,0.98561077]
[1752576796169,1.1053787,679.74,679.33,0.98561077]
[1752576796371,0.99288467,679.84,679.33,0.98561077]
[1752576796570,1.1053571,679.83,679.33,0.98561077]
[1752576796774,1.1053571,679.82,679.33,0.98561077]
[1752576796974,1.1053571,679.81,679.33,0.98561077]
[1752576797289,1.1053571,679.8,679.35,0.98561077]
[1752576797472,1.1053571,679.79,679.35,0.98561077]
[1752576797771,1.1053571,679.78,679.35,0.98561077]
[1752576797969,1.1053571,679.77,679.35,0.98561077]
[1752576798177,1.1053571,679.76,679.35,0.98561077]
[1752576798573,1.1059101,679.75,679.35,0.98561077]
[1752576798775,0.99288467,679.89,679.35,0.98561077]
[1752576799076,1.1059101,679.88,679.35,0.98561077]
[1752576799272,1.1059101,679.87,679.35,0.98561077]
[1752576799473,2.09879477,679.86,679.37,0.98561077]
[1752576799773,1.1059101,679.85,679.37,0.98561077]
[1752576799973,1.1059101,679.84,679.37,0.98561077]
[1752576800274,1.1059101,679.83,679.35,0.98561077]
[1752576800476,1.1059101,679.82,679.35,0.98561077]
[1752576800674,1.1059101,679.81,679.35,0.98561077]
[1752576800874,1.1059101,679.8,679.35,0.98561077]
[1752576801176,1.1059101,679.79,679.35,0.98561077]
[1752576801373,1.1059101,679.78,679.35,0.98561077]
[1752576801678,1.1059101,679.77,679.34,0.98561077]
[1752576801876,1.1059101,679.76,679.34,0.98561077]
[1752576802075,1.1059101,679.75,679.34,0.98561077]
[1752576802274,1.1059101,679.74,679.34,0.98561077]
[1752576802479,0.99288467,679.89,679.35,0.98561077]
[1752576802781,1.1060449,679.88,679.35,0.98561077]
[1752576802975,1.1060449,679.87,679.35,0.98561077]
[1752576803173,1.1060449,679.86,679.35,0.98561077]
[1752576803490,1.1060449,679.85,679.34,0.98561077]
[1752576803674,1.1060449,679.84,679.34,0.98561077]
[1752576803872,1.1060449,679.83,679.35,0.98561077]
[1752576804078,1.1060449,679.82,679.35,0.98561077]
[1752576804277,1.1060449,679.81,679.35,0.98561077]
[1752576804479,1.1060449,679.8,679.32,0.98561077]
[1752576804780,1.1060449,679.79,679.42,0.98561077]
[1752576804979,1.1060449,679.78,679.42,0.98561077]
[1752576805279,1.1060449,679.77,679.41,0.98561077]
[1752576805475,0.99288467,680.01,679.41,0.98561077]
[1752576805679,1.1058748,680.0,679.41,0.98561077]
[1752576805881,1.1058748,679.99,679.41,0.98561077]
[1752576806182,1.1058748,679.98,679.41,0.98561077]
[1752576806378,1.1058748,679.98,679.24,1.3141477]
[1752576806379,1.1058748,679.97,679.4,0.98561077]
[1752576806580,1.1058748,679.96,679.4,0.98561077]
[1752576806777,0.99288467,680.02,679.4,0.98561077]
[1752576806778,1.1058748,679.95,679.4,0.98561077]
[1752576806982,1.1058748,679.94,679.4,0.98561077]
[1752576807276,0.99288467,680.02,679.4,0.98561077]
[1752576807580,1.1055854,680.01,679.4,0.98561077]
[1752576807779,1.1055854,680.0,679.4,0.98561077]
[1752576807980,1.1055854,679.99,679.4,0.98561077]
[1752576808180,1.1055854,679.98,679.39,0.98561077]
[1752576808378,1.1055854,679.97,679.39,0.98561077]
[1752576808580,1.1055854,679.96,679.39,0.98561077]
[1752576808778,1.1055854,679.95,679.39,0.98561077]
[1752576808982,1.1055854,679.94,679.39,0.98561077]
[1752576809282,1.1055854,679.93,679.38,0.98561077]